[Event "Titled Tuesday Blitz January 10 Early 2023"]
[White "Kozin, Yuri"]
[Black "Afanasieva, Alexandra"]
[WhiteFideId "4129920"]
[BlackFideId "34126926"]
[WhiteElo "2251"]
[BlackElo "1857"]
[Result "0-1"]
[Round "05"]
[TimeControl "180+2"]
[Date "2023.01.10"]
[WhiteClock "0:00:35"]
[BlackClock "0:00:04"]

1. e4 {[%clk 0:03:00]}  c5 {[%clk 0:02:56]} 2. Nf3 {[%clk 0:03:00]}  e6 {[%clk 0:02:55]} 3. d4 {[%clk 0:03:01]}  cxd4 {[%clk 0:02:55]} 4. Nxd4 {[%clk 0:03:02]}  Nf6 {[%clk 0:02:56]} 5. Nc3 {[%clk 0:03:02]}  Nc6 {[%clk 0:02:56]} 6. Ndb5 {[%clk 0:03:00]}  Bc5 {[%clk 0:02:56]} 7. Nd6+ {[%clk 0:02:52]}  Ke7 {[%clk 0:02:55]} 8. Nxc8+ {[%clk 0:02:52]}  Rxc8 {[%clk 0:02:44]} 9. Bd3 {[%clk 0:02:52]}  h6 {[%clk 0:02:09]} 10. O-O {[%clk 0:02:49]}  Qc7 {[%clk 0:02:02]} 11. Qe2 {[%clk 0:02:28]}  Nd4 {[%clk 0:01:50]} 12. Qd1 {[%clk 0:02:27]}  Rhd8 {[%clk 0:01:47]} 13. Be3 {[%clk 0:02:26]}  d5 {[%clk 0:01:30]} 14. e5 {[%clk 0:02:01]}  Qxe5 {[%clk 0:01:15]} 15. Na4 {[%clk 0:01:59]}  b6 {[%clk 0:01:03]} 16. Nxc5 {[%clk 0:01:55]}  bxc5 {[%clk 0:01:01]} 17. Re1 {[%clk 0:01:55]}  Qd6 {[%clk 0:00:47]} 18. c3 {[%clk 0:01:49]}  Nc6 {[%clk 0:00:43]} 19. Qf3 {[%clk 0:01:48]}  Ne5 {[%clk 0:00:39]} 20. Qd1 {[%clk 0:01:48]}  Nxd3 {[%clk 0:00:36]} 21. Qxd3 {[%clk 0:01:47]}  Kf8 {[%clk 0:00:35]} 22. g3 {[%clk 0:01:44]}  e5 {[%clk 0:00:27]} 23. Rad1 {[%clk 0:01:35]}  c4 {[%clk 0:00:18]} 24. Qc2 {[%clk 0:01:32]}  Qc6 {[%clk 0:00:16]} 25. Bxa7 {[%clk 0:01:29]}  Re8 {[%clk 0:00:16]} 26. Be3 {[%clk 0:01:23]}  Kg8 {[%clk 0:00:16]} 27. Qd2 {[%clk 0:01:17]}  Rcd8 {[%clk 0:00:16]} 28. b4 {[%clk 0:01:14]}  d4 {[%clk 0:00:13]} 29. cxd4 {[%clk 0:01:08]}  exd4 {[%clk 0:00:14]} 30. Bxd4 {[%clk 0:01:07]}  Rxe1+ {[%clk 0:00:14]} 31. Qxe1 {[%clk 0:01:05]}  Re8 {[%clk 0:00:08]} 32. Qc3 {[%clk 0:01:02]}  Ne4 {[%clk 0:00:05]} 33. Qc2 {[%clk 0:01:02]}  Ng5 {[%clk 0:00:04]} 34. h4 {[%clk 0:00:35]}  Nf3+ {[%clk 0:00:04]} 35. Kf1 {[%clk 0:00:35]}  Nxd4 {[%clk 0:00:04]} 0-1


[Site "https://www.chess.com"]

[Event "Titled Tuesday Blitz January 10 Early 2023"]
[White "Krienke, Makaio"]
[Black "Bashirli, Saadat"]
[WhiteFideId "2038854"]
[BlackFideId "13429990"]
[WhiteElo "2115"]
[BlackElo "1571"]
[Result "1-0"]
[Round "05"]
[TimeControl "180+2"]
[Date "2023.01.10"]
[WhiteClock "0:00:09"]
[BlackClock "0:00:01"]

1. e4 {[%clk 0:03:00]}  c5 {[%clk 0:03:00]} 2. Nf3 {[%clk 0:03:00]}  g6 {[%clk 0:02:59]} 3. d4 {[%clk 0:02:58]}  cxd4 {[%clk 0:03:00]} 4. Nxd4 {[%clk 0:02:58]}  Nc6 {[%clk 0:03:00]} 5. Nc3 {[%clk 0:02:58]}  Bg7 {[%clk 0:02:58]} 6. Be3 {[%clk 0:02:59]}  Nf6 {[%clk 0:02:58]} 7. Bc4 {[%clk 0:02:58]}  O-O {[%clk 0:02:58]} 8. Qd2 {[%clk 0:02:57]}  Ng4 {[%clk 0:02:55]} 9. Nxc6 {[%clk 0:02:50]}  dxc6 {[%clk 0:02:53]} 10. Bf4 {[%clk 0:02:41]}  Qxd2+ {[%clk 0:02:48]} 11. Bxd2 {[%clk 0:02:42]}  Rd8 {[%clk 0:02:47]} 12. h3 {[%clk 0:02:15]}  Nxf2 {[%clk 0:02:35]} 13. Rf1 {[%clk 0:02:15]}  Bd4 {[%clk 0:02:33]} 14. Ne2 {[%clk 0:02:15]}  Nxe4 {[%clk 0:02:20]} 15. Bxf7+ {[%clk 0:02:10]}  Kg7 {[%clk 0:02:18]} 16. Nxd4 {[%clk 0:02:06]}  Rxd4 {[%clk 0:02:16]} 17. Be3 {[%clk 0:01:59]}  Rd6 {[%clk 0:02:08]} 18. Rf4 {[%clk 0:01:47]}  Nf6 {[%clk 0:02:04]} 19. Bb3 {[%clk 0:01:45]}  e5 {[%clk 0:02:02]} 20. Rf2 {[%clk 0:01:41]}  Bf5 {[%clk 0:01:59]} 21. g4 {[%clk 0:01:38]}  Be4 {[%clk 0:01:49]} 22. g5 {[%clk 0:01:38]}  Nd5 {[%clk 0:01:46]} 23. Bc5 {[%clk 0:01:27]}  Rd7 {[%clk 0:01:44]} 24. Re2 {[%clk 0:01:23]}  Bf5 {[%clk 0:01:27]} 25. Rxe5 {[%clk 0:01:22]}  Bxh3 {[%clk 0:01:27]} 26. Rd1 {[%clk 0:01:22]}  Rad8 {[%clk 0:01:23]} 27. Bxa7 {[%clk 0:00:57]}  Rf7 {[%clk 0:01:19]} 28. Bd4 {[%clk 0:00:44]}  Kg8 {[%clk 0:01:09]} 29. Kd2 {[%clk 0:00:41]}  Bg4 {[%clk 0:00:58]} 30. Rde1 {[%clk 0:00:41]}  Rf4 {[%clk 0:00:50]} 31. c3 {[%clk 0:00:29]}  Kf8 {[%clk 0:00:40]} 32. Bc5+ {[%clk 0:00:28]}  Kg7 {[%clk 0:00:38]} 33. a4 {[%clk 0:00:23]}  Nb4+ {[%clk 0:00:26]} 34. Bd4 {[%clk 0:00:20]}  Kf8 {[%clk 0:00:16]} 35. Re7 {[%clk 0:00:18]}  Nd5 {[%clk 0:00:15]} 36. Kc1 {[%clk 0:00:18]}  Rf7 {[%clk 0:00:13]} 37. Rxf7+ {[%clk 0:00:15]}  Kxf7 {[%clk 0:00:14]} 38. Rf1+ {[%clk 0:00:15]}  Kg8 {[%clk 0:00:12]} 39. Re1 {[%clk 0:00:15]}  Rf8 {[%clk 0:00:07]} 40. Re7 {[%clk 0:00:15]}  Rf7 {[%clk 0:00:07]} 41. Re8+ {[%clk 0:00:15]}  Rf8 {[%clk 0:00:07]} 42. Re7 {[%clk 0:00:14]}  Rf1+ {[%clk 0:00:05]} 43. Kd2 {[%clk 0:00:14]}  Rf7 {[%clk 0:00:05]} 44. Re8+ {[%clk 0:00:14]}  Rf8 {[%clk 0:00:05]} 45. Re4 {[%clk 0:00:14]}  Bf5 {[%clk 0:00:04]} 46. Re5 {[%clk 0:00:14]}  Rd8 {[%clk 0:00:02]} 47. c4 {[%clk 0:00:14]}  Nb4 {[%clk 0:00:02]} 48. Kc3 {[%clk 0:00:14]}  Na6 {[%clk 0:00:02]} 49. Re7 {[%clk 0:00:14]}  Kf8 {[%clk 0:00:02]} 50. Rxb7 {[%clk 0:00:13]}  c5 {[%clk 0:00:02]} 51. Bg7+ {[%clk 0:00:13]}  Kg8 {[%clk 0:00:02]} 52. Bf6 {[%clk 0:00:13]}  Rd3+ {[%clk 0:00:02]} 53. Kc2 {[%clk 0:00:12]}  Rd7+ {[%clk 0:00:03]} 54. Kc1 {[%clk 0:00:12]}  Rxb7 {[%clk 0:00:04]} 55. Bd1 {[%clk 0:00:11]}  Nb4 {[%clk 0:00:04]} 56. Bf3 {[%clk 0:00:12]}  Nd3+ {[%clk 0:00:04]} 57. Kd2 {[%clk 0:00:12]}  Rd7 {[%clk 0:00:05]} 58. Bc6 {[%clk 0:00:11]}  Rd6 {[%clk 0:00:04]} 59. Bd5+ {[%clk 0:00:11]}  Kf8 {[%clk 0:00:04]} 60. Bc3 {[%clk 0:00:10]}  Nf4 {[%clk 0:00:03]} 61. Be5 {[%clk 0:00:10]}  Rd8 {[%clk 0:00:01]} 62. Bxf4 {[%clk 0:00:11]}  Be6 {[%clk 0:00:02]} 63. Kc3 {[%clk 0:00:09]}  Bxd5 {[%clk 0:00:02]} 64. cxd5 {[%clk 0:00:10]}  Rxd5 {[%clk 0:00:02]} 65. a5 {[%clk 0:00:10]}  Rd8 {[%clk 0:00:02]} 66. Kc4 {[%clk 0:00:10]}  Rc8 {[%clk 0:00:02]} 67. a6 {[%clk 0:00:10]}  Ra8 {[%clk 0:00:02]} 68. Kb5 {[%clk 0:00:10]}  Ke7 {[%clk 0:00:02]} 69. Kb6 {[%clk 0:00:10]}  c4 {[%clk 0:00:02]} 70. Kb7 {[%clk 0:00:10]}  Rd8 {[%clk 0:00:02]} 71. a7 {[%clk 0:00:10]}  Ke6 {[%clk 0:00:01]} 72. Bb8 {[%clk 0:00:09]}  Rd7+ {[%clk 0:00:01]} 73. Bc7 {[%clk 0:00:09]} 1-0


[Site "https://www.chess.com"]

[Event "Titled Tuesday Blitz January 10 Early 2023"]
[White "Luxama, Jacques Muller"]
[Black "Baches Garcia, Guillermo"]
[WhiteFideId "11900113"]
[BlackFideId "2209764"]
[WhiteElo "1933"]
[BlackElo "2327"]
[Result "1/2-1/2"]
[Round "05"]
[TimeControl "180+2"]
[Date "2023.01.10"]
[WhiteClock "0:02:36"]
[BlackClock "0:02:22"]

1. d4 {[%clk 0:03:00]}  Nf6 {[%clk 0:02:59]} 2. c4 {[%clk 0:02:59]}  e6 {[%clk 0:03:00]} 3. Nf3 {[%clk 0:02:58]}  d5 {[%clk 0:03:00]} 4. Nc3 {[%clk 0:02:58]}  c5 {[%clk 0:03:00]} 5. cxd5 {[%clk 0:02:58]}  Nxd5 {[%clk 0:03:01]} 6. e4 {[%clk 0:02:57]}  Nxc3 {[%clk 0:03:01]} 7. bxc3 {[%clk 0:02:58]}  cxd4 {[%clk 0:03:01]} 8. cxd4 {[%clk 0:02:59]}  Bb4+ {[%clk 0:03:02]} 9. Bd2 {[%clk 0:03:00]}  Bxd2+ {[%clk 0:03:02]} 10. Qxd2 {[%clk 0:03:01]}  O-O {[%clk 0:03:03]} 11. Bc4 {[%clk 0:02:54]}  Nd7 {[%clk 0:03:03]} 12. O-O {[%clk 0:02:53]}  b6 {[%clk 0:03:04]} 13. Rad1 {[%clk 0:02:51]}  Bb7 {[%clk 0:03:03]} 14. Qe3 {[%clk 0:02:50]}  Rc8 {[%clk 0:03:03]} 15. Bb3 {[%clk 0:02:50]}  Re8 {[%clk 0:03:02]} 16. Rfe1 {[%clk 0:02:44]}  h6 {[%clk 0:02:49]} 17. h4 {[%clk 0:02:41]}  Nf6 {[%clk 0:02:41]} 18. Qf4 {[%clk 0:02:39]}  Nh5 {[%clk 0:02:22]} 19. Qg4 {[%clk 0:02:36]}  Nf6 {[%clk 0:02:22]} 20. Qf4 {[%clk 0:02:36]}  Nh5 {[%clk 0:02:22]} 21. Qg4 {[%clk 0:02:36]}  Nf6 {[%clk 0:02:22]} 22. Qf4 {[%clk 0:02:36]} 1/2-1/2


[Site "https://www.chess.com"]

[Event "Titled Tuesday Blitz January 10 Early 2023"]
[White "Ronka, Erik"]
[Black "Alfaro, William"]
[WhiteFideId "505080"]
[BlackFideId "6100457"]
[WhiteElo "2276"]
[BlackElo "2134"]
[Result "1-0"]
[Round "05"]
[TimeControl "180+2"]
[Date "2023.01.10"]
[WhiteClock "0:02:29"]
[BlackClock "0:02:22"]

1. f4 {[%clk 0:03:00]}  d6 {[%clk 0:02:55]} 2. Nf3 {[%clk 0:03:00]}  g6 {[%clk 0:02:55]} 3. e4 {[%clk 0:02:51]}  Bg7 {[%clk 0:02:54]} 4. d4 {[%clk 0:02:51]}  Bg4 {[%clk 0:02:52]} 5. Be3 {[%clk 0:02:47]}  Nf6 {[%clk 0:02:49]} 6. h3 {[%clk 0:02:43]}  Bxf3 {[%clk 0:02:42]} 7. Qxf3 {[%clk 0:02:44]}  Nc6 {[%clk 0:02:41]} 8. Nc3 {[%clk 0:02:40]}  e5 {[%clk 0:02:40]} 9. dxe5 {[%clk 0:02:40]}  dxe5 {[%clk 0:02:40]} 10. f5 {[%clk 0:02:41]}  Nd4 {[%clk 0:02:38]} 11. Qf2 {[%clk 0:02:40]}  c5 {[%clk 0:02:35]} 12. g4 {[%clk 0:02:37]}  Qb6 {[%clk 0:02:32]} 13. O-O-O {[%clk 0:02:35]}  O-O {[%clk 0:02:25]} 14. g5 {[%clk 0:02:29]}  Nh5 {[%clk 0:02:22]} 15. f6 {[%clk 0:02:29]}  Bh8 {[%clk 0:02:22]} 16. Nd5 {[%clk 0:02:29]} 1-0


[Site "https://www.chess.com"]

[Event "Titled Tuesday Blitz January 10 Early 2023"]
[White "Avalos Parra, Joao"]
[Black "Arencibia Monduy, Antonio"]
[WhiteFideId "3402541"]
[BlackFideId "3507939"]
[WhiteElo "2185"]
[BlackElo "2122"]
[Result "1-0"]
[Round "05"]
[TimeControl "180+2"]
[Date "2023.01.10"]
[WhiteClock "0:00:27"]
[BlackClock "0:00:01"]

1. d4 {[%clk 0:03:00]}  Nf6 {[%clk 0:02:59]} 2. Nf3 {[%clk 0:02:59]}  c5 {[%clk 0:02:59]} 3. d5 {[%clk 0:02:59]}  g6 {[%clk 0:02:59]} 4. Nc3 {[%clk 0:02:59]}  Bg7 {[%clk 0:02:58]} 5. e4 {[%clk 0:02:59]}  d6 {[%clk 0:02:59]} 6. h3 {[%clk 0:02:59]}  O-O {[%clk 0:02:58]} 7. a4 {[%clk 0:02:59]}  Na6 {[%clk 0:02:54]} 8. Be2 {[%clk 0:02:58]}  Nc7 {[%clk 0:02:55]} 9. O-O {[%clk 0:02:59]}  a6 {[%clk 0:02:55]} 10. Bf4 {[%clk 0:02:56]}  Nh5 {[%clk 0:02:54]} 11. Bh2 {[%clk 0:02:55]}  Rb8 {[%clk 0:02:54]} 12. e5 {[%clk 0:02:34]}  dxe5 {[%clk 0:02:43]} 13. Nxe5 {[%clk 0:02:29]}  Nf6 {[%clk 0:02:41]} 14. Bf3 {[%clk 0:02:27]}  Nfe8 {[%clk 0:02:38]} 15. Re1 {[%clk 0:02:23]}  Nd6 {[%clk 0:02:38]} 16. a5 {[%clk 0:02:21]}  Ncb5 {[%clk 0:02:30]} 17. Ne4 {[%clk 0:02:02]}  Nxe4 {[%clk 0:02:16]} 18. Bxe4 {[%clk 0:01:51]}  Nd6 {[%clk 0:02:16]} 19. Bf3 {[%clk 0:01:49]}  f6 {[%clk 0:01:56]} 20. Nd3 {[%clk 0:01:46]}  Qc7 {[%clk 0:01:43]} 21. Qd2 {[%clk 0:01:43]}  f5 {[%clk 0:01:38]} 22. c3 {[%clk 0:01:37]}  b5 {[%clk 0:01:30]} 23. Qe3 {[%clk 0:01:31]}  f4 {[%clk 0:00:55]} 24. Qxe7 {[%clk 0:01:26]}  Qxe7 {[%clk 0:00:51]} 25. Rxe7 {[%clk 0:01:27]}  Bf5 {[%clk 0:00:26]} 26. Nxc5 {[%clk 0:01:25]}  g5 {[%clk 0:00:12]} 27. Nxa6 {[%clk 0:01:19]}  Ra8 {[%clk 0:00:12]} 28. Nb4 {[%clk 0:01:18]}  Rfe8 {[%clk 0:00:11]} 29. Rxe8+ {[%clk 0:01:15]}  Rxe8 {[%clk 0:00:09]} 30. a6 {[%clk 0:01:16]}  Ra8 {[%clk 0:00:09]} 31. g3 {[%clk 0:01:15]}  Be5 {[%clk 0:00:08]} 32. Nc6 {[%clk 0:01:13]}  fxg3 {[%clk 0:00:08]} 33. Bxg3 {[%clk 0:01:13]}  Bxg3 {[%clk 0:00:08]} 34. fxg3 {[%clk 0:01:14]}  Bxh3 {[%clk 0:00:07]} 35. a7 {[%clk 0:01:08]}  Bd7 {[%clk 0:00:06]} 36. Ne5 {[%clk 0:00:55]}  Bf5 {[%clk 0:00:02]} 37. Ra6 {[%clk 0:00:56]}  Nc8 {[%clk 0:00:02]} 38. d6 {[%clk 0:00:56]}  Rxa7 {[%clk 0:00:02]} 39. Bd5+ {[%clk 0:00:54]}  Kg7 {[%clk 0:00:01]} 40. d7 {[%clk 0:00:50]}  Bxd7 {[%clk 0:00:01]} 41. Rxa7 {[%clk 0:00:50]}  Nxa7 {[%clk 0:00:02]} 42. Nxd7 {[%clk 0:00:51]}  Kg6 {[%clk 0:00:02]} 43. Bb7 {[%clk 0:00:48]}  Kf5 {[%clk 0:00:01]} 44. Kg2 {[%clk 0:00:46]}  Ke6 {[%clk 0:00:02]} 45. Nf8+ {[%clk 0:00:45]}  Ke7 {[%clk 0:00:01]} 46. Nxh7 {[%clk 0:00:46]}  g4 {[%clk 0:00:01]} 47. Ng5 {[%clk 0:00:47]}  Kf6 {[%clk 0:00:02]} 48. Ne4+ {[%clk 0:00:47]}  Ke5 {[%clk 0:00:02]} 49. Nf2 {[%clk 0:00:47]}  Kd6 {[%clk 0:00:02]} 50. Nxg4 {[%clk 0:00:46]}  Kc7 {[%clk 0:00:03]} 51. Bd5 {[%clk 0:00:45]}  Nc8 {[%clk 0:00:02]} 52. Nf6 {[%clk 0:00:45]}  Nb6 {[%clk 0:00:02]} 53. g4 {[%clk 0:00:45]}  Kd6 {[%clk 0:00:02]} 54. g5 {[%clk 0:00:44]}  Ke7 {[%clk 0:00:01]} 55. Kf3 {[%clk 0:00:42]}  Na4 {[%clk 0:00:02]} 56. Ke3 {[%clk 0:00:29]}  Nxb2 {[%clk 0:00:02]} 57. Kd4 {[%clk 0:00:29]}  Na4 {[%clk 0:00:01]} 58. Ne4 {[%clk 0:00:27]} 1-0


[Site "https://www.chess.com"]

[Event "Titled Tuesday Blitz January 10 Early 2023"]
[White "Novikov, Evgenij"]
[Black "Sala, Giulia"]
[WhiteFideId "4125380"]
[BlackFideId "2840451"]
[WhiteElo "2276"]
[BlackElo "1998"]
[Result "0-1"]
[Round "05"]
[TimeControl "180+2"]
[Date "2023.01.10"]
[WhiteClock "0:00:02"]
[BlackClock "0:00:08"]

1. b3 {[%clk 0:02:58]}  e5 {[%clk 0:02:57]} 2. Bb2 {[%clk 0:02:59]}  Nc6 {[%clk 0:02:57]} 3. g3 {[%clk 0:02:56]}  d5 {[%clk 0:02:57]} 4. Bg2 {[%clk 0:02:56]}  Nf6 {[%clk 0:02:57]} 5. d3 {[%clk 0:02:57]}  g6 {[%clk 0:02:57]} 6. Nd2 {[%clk 0:02:57]}  Bg7 {[%clk 0:02:57]} 7. e3 {[%clk 0:02:58]}  O-O {[%clk 0:02:57]} 8. Ne2 {[%clk 0:02:58]}  Be6 {[%clk 0:02:57]} 9. h3 {[%clk 0:02:57]}  Qd7 {[%clk 0:02:56]} 10. g4 {[%clk 0:02:57]}  d4 {[%clk 0:02:49]} 11. e4 {[%clk 0:02:50]}  Ne7 {[%clk 0:02:45]} 12. O-O {[%clk 0:02:43]}  c5 {[%clk 0:02:39]} 13. f4 {[%clk 0:02:40]}  exf4 {[%clk 0:02:39]} 14. Nxf4 {[%clk 0:02:41]}  b5 {[%clk 0:02:37]} 15. a4 {[%clk 0:02:38]}  a6 {[%clk 0:02:36]} 16. axb5 {[%clk 0:02:32]}  axb5 {[%clk 0:02:37]} 17. Rxa8 {[%clk 0:02:31]}  Rxa8 {[%clk 0:02:36]} 18. e5 {[%clk 0:02:32]}  Nfd5 {[%clk 0:02:35]} 19. Ne4 {[%clk 0:02:31]}  Qc7 {[%clk 0:02:11]} 20. Nf6+ {[%clk 0:02:00]}  Bxf6 {[%clk 0:01:37]} 21. exf6 {[%clk 0:01:50]}  Ne3 {[%clk 0:01:27]} 22. Qf3 {[%clk 0:01:21]}  N7d5 {[%clk 0:01:18]} 23. Nxe6 {[%clk 0:00:51]}  fxe6 {[%clk 0:01:18]} 24. f7+ {[%clk 0:00:52]}  Kf8 {[%clk 0:01:15]} 25. Bc1 {[%clk 0:00:52]}  Ra7 {[%clk 0:01:05]} 26. Re1 {[%clk 0:00:20]}  Qxf7 {[%clk 0:01:01]} 27. Qg3 {[%clk 0:00:20]}  Ra2 {[%clk 0:00:44]} 28. Qd6+ {[%clk 0:00:15]}  Qe7 {[%clk 0:00:39]} 29. Qb8+ {[%clk 0:00:14]}  Kg7 {[%clk 0:00:23]} 30. Qe5+ {[%clk 0:00:13]}  Qf6 {[%clk 0:00:23]} 31. Qe4 {[%clk 0:00:05]}  Rxc2 {[%clk 0:00:21]} 32. Bxe3 {[%clk 0:00:05]}  Nxe3 {[%clk 0:00:20]} 33. Bf3 {[%clk 0:00:04]}  Qh4 {[%clk 0:00:11]} 34. Qe5+ {[%clk 0:00:04]}  Kh6 {[%clk 0:00:10]} 35. Qf4+ {[%clk 0:00:04]}  Qg5 {[%clk 0:00:10]} 36. Qg3 {[%clk 0:00:04]}  Nf5 {[%clk 0:00:09]} 37. Qe5 {[%clk 0:00:03]}  Ne3 {[%clk 0:00:09]} 38. Qg3 {[%clk 0:00:02]}  Qf6 {[%clk 0:00:08]} 39. Qh4+ {[%clk 0:00:02]}  Qxh4 {[%clk 0:00:08]} 0-1


[Site "https://www.chess.com"]

[Event "Titled Tuesday Blitz January 10 Early 2023"]
[White "Degenbaev, Aziz"]
[Black "Cepo, Toni"]
[WhiteFideId "13802640"]
[BlackFideId "4675916"]
[WhiteElo "2203"]
[BlackElo "2145"]
[Result "0-1"]
[Round "05"]
[TimeControl "180+2"]
[Date "2023.01.10"]
[WhiteClock "0:02:03"]
[BlackClock "0:01:28"]

1. e4 {[%clk 0:03:00]}  e5 {[%clk 0:02:56]} 2. Nf3 {[%clk 0:03:00]}  Nf6 {[%clk 0:02:55]} 3. Nxe5 {[%clk 0:02:59]}  d6 {[%clk 0:02:55]} 4. Nf3 {[%clk 0:02:59]}  Nxe4 {[%clk 0:02:55]} 5. Nc3 {[%clk 0:02:59]}  Nxc3 {[%clk 0:02:55]} 6. dxc3 {[%clk 0:03:00]}  Be7 {[%clk 0:02:55]} 7. Bf4 {[%clk 0:02:58]}  O-O {[%clk 0:02:54]} 8. Qd2 {[%clk 0:02:58]}  Nc6 {[%clk 0:02:52]} 9. O-O-O {[%clk 0:02:58]}  Bg4 {[%clk 0:02:52]} 10. h3 {[%clk 0:02:56]}  Bh5 {[%clk 0:02:52]} 11. g4 {[%clk 0:02:55]}  Bg6 {[%clk 0:02:52]} 12. h4 {[%clk 0:02:52]}  h5 {[%clk 0:02:51]} 13. gxh5 {[%clk 0:02:51]}  Bxh5 {[%clk 0:02:52]} 14. Be2 {[%clk 0:02:51]}  Bf6 {[%clk 0:02:50]} 15. Rdg1 {[%clk 0:02:51]}  Re8 {[%clk 0:02:39]} 16. Bd1 {[%clk 0:02:50]}  Ne5 {[%clk 0:02:24]} 17. Nxe5 {[%clk 0:02:45]}  Bxd1 {[%clk 0:02:20]} 18. Nxf7 {[%clk 0:02:41]}  Kxf7 {[%clk 0:01:58]} 19. Qxd1 {[%clk 0:02:40]}  Qd7 {[%clk 0:01:49]} 20. Qh5+ {[%clk 0:02:32]}  Kg8 {[%clk 0:01:48]} 21. Qg6 {[%clk 0:02:32]}  Qf7 {[%clk 0:01:42]} 22. Qg3 {[%clk 0:02:32]}  Qxa2 {[%clk 0:01:32]} 23. h5 {[%clk 0:02:10]}  Re2 {[%clk 0:01:28]} 24. Kd1 {[%clk 0:02:07]}  Rae8 {[%clk 0:01:27]} 25. h6 {[%clk 0:02:04]}  Qb1+ {[%clk 0:01:27]} 26. Bc1 {[%clk 0:02:03]}  Qxc2# {[%clk 0:01:28]} 0-1


[Site "https://www.chess.com"]

[Event "Titled Tuesday Blitz January 10 Early 2023"]
[White "Ruge, Edison"]
[Black "Szyszylo, Rafal"]
[WhiteFideId "4401000"]
[BlackFideId "1109626"]
[WhiteElo "2201"]
[BlackElo "2091"]
[Result "1-0"]
[Round "05"]
[TimeControl "180+2"]
[Date "2023.01.10"]
[WhiteClock "0:00:55"]
[BlackClock "0:00:01"]

1. e4 {[%clk 0:03:00]}  d6 {[%clk 0:02:59]} 2. Nf3 {[%clk 0:02:58]}  Nf6 {[%clk 0:03:00]} 3. d3 {[%clk 0:02:58]}  g6 {[%clk 0:02:59]} 4. Nbd2 {[%clk 0:02:59]}  Bg7 {[%clk 0:02:59]} 5. g3 {[%clk 0:03:00]}  O-O {[%clk 0:03:00]} 6. Bg2 {[%clk 0:03:00]}  e5 {[%clk 0:02:59]} 7. h4 {[%clk 0:03:00]}  Bg4 {[%clk 0:02:57]} 8. O-O {[%clk 0:03:00]}  Qd7 {[%clk 0:02:57]} 9. Re1 {[%clk 0:02:59]}  c5 {[%clk 0:02:46]} 10. Nf1 {[%clk 0:02:58]}  Nc6 {[%clk 0:02:44]} 11. c3 {[%clk 0:02:58]}  b5 {[%clk 0:02:43]} 12. Ne3 {[%clk 0:02:56]}  Be6 {[%clk 0:02:41]} 13. Ng5 {[%clk 0:02:55]}  Rab8 {[%clk 0:02:35]} 14. Nd5 {[%clk 0:02:52]}  Bg4 {[%clk 0:02:26]} 15. f3 {[%clk 0:02:44]}  h6 {[%clk 0:02:21]} 16. Nxf7 {[%clk 0:02:37]}  Rxf7 {[%clk 0:02:15]} 17. Nxf6+ {[%clk 0:02:31]}  Rxf6 {[%clk 0:02:13]} 18. fxg4 {[%clk 0:02:32]}  Rbf8 {[%clk 0:02:13]} 19. Be3 {[%clk 0:02:31]}  b4 {[%clk 0:02:06]} 20. Qe2 {[%clk 0:02:30]}  a5 {[%clk 0:01:55]} 21. Rf1 {[%clk 0:02:30]}  Rxf1+ {[%clk 0:01:53]} 22. Rxf1 {[%clk 0:02:29]}  Rxf1+ {[%clk 0:01:52]} 23. Bxf1 {[%clk 0:02:28]}  Qe6 {[%clk 0:01:44]} 24. g5 {[%clk 0:02:16]}  hxg5 {[%clk 0:01:38]} 25. Bxg5 {[%clk 0:02:11]}  Qxa2 {[%clk 0:01:37]} 26. cxb4 {[%clk 0:02:09]}  axb4 {[%clk 0:01:23]} 27. h5 {[%clk 0:02:09]}  gxh5 {[%clk 0:00:59]} 28. Qxh5 {[%clk 0:02:08]}  Qf7 {[%clk 0:00:59]} 29. Qg4 {[%clk 0:01:55]}  Nd4 {[%clk 0:00:59]} 30. Bg2 {[%clk 0:01:40]}  Kh7 {[%clk 0:00:44]} 31. Qh3+ {[%clk 0:01:37]}  Kg6 {[%clk 0:00:40]} 32. Qg4 {[%clk 0:01:34]}  Qe6 {[%clk 0:00:24]} 33. Qh4 {[%clk 0:01:25]}  Bf6 {[%clk 0:00:16]} 34. Bxf6 {[%clk 0:01:23]}  Qxf6 {[%clk 0:00:16]} 35. Qg4+ {[%clk 0:01:22]}  Kh6 {[%clk 0:00:15]} 36. Kh2 {[%clk 0:01:21]}  Qg5 {[%clk 0:00:14]} 37. Qd7 {[%clk 0:01:15]}  Qg6 {[%clk 0:00:14]} 38. Qd8 {[%clk 0:01:12]}  Qh5+ {[%clk 0:00:14]} 39. Kg1 {[%clk 0:01:10]}  Qd1+ {[%clk 0:00:14]} 40. Kh2 {[%clk 0:01:08]}  Qh5+ {[%clk 0:00:14]} 41. Kg1 {[%clk 0:01:04]}  Qd1+ {[%clk 0:00:14]} 42. Bf1 {[%clk 0:00:59]}  Nf3+ {[%clk 0:00:10]} 43. Kf2 {[%clk 0:00:58]}  Ng5 {[%clk 0:00:07]} 44. Qf6+ {[%clk 0:00:55]}  Kh7 {[%clk 0:00:01]} 45. Qxg5 {[%clk 0:00:54]}  Qc2+ {[%clk 0:00:01]} 46. Be2 {[%clk 0:00:54]}  Qxb2 {[%clk 0:00:01]} 47. Qe7+ {[%clk 0:00:54]}  Kh8 {[%clk 0:00:01]} 48. Qxd6 {[%clk 0:00:55]} 1-0


[Site "https://www.chess.com"]

[Event "Titled Tuesday Blitz January 10 Early 2023"]
[White "Bozorov, Makhsum"]
[Black "Flis, Pawel"]
[WhiteFideId "14201330"]
[BlackFideId "1112864"]
[WhiteElo "2145"]
[BlackElo "1879"]
[Result "1-0"]
[Round "05"]
[TimeControl "180+2"]
[Date "2023.01.10"]
[WhiteClock "0:00:17"]
[BlackClock "0:00:03"]

1. d4 {[%clk 0:03:00]}  c5 {[%clk 0:02:56]} 2. d5 {[%clk 0:03:00]}  Nf6 {[%clk 0:02:55]} 3. Nc3 {[%clk 0:02:59]}  e6 {[%clk 0:02:54]} 4. e4 {[%clk 0:02:58]}  d6 {[%clk 0:02:54]} 5. Nf3 {[%clk 0:02:48]}  exd5 {[%clk 0:02:54]} 6. exd5 {[%clk 0:02:46]}  Be7 {[%clk 0:02:54]} 7. Be2 {[%clk 0:02:42]}  O-O {[%clk 0:02:55]} 8. O-O {[%clk 0:02:43]}  Bg4 {[%clk 0:02:53]} 9. Bf4 {[%clk 0:02:32]}  a6 {[%clk 0:02:51]} 10. a4 {[%clk 0:02:32]}  Nbd7 {[%clk 0:02:46]} 11. h3 {[%clk 0:02:31]}  Bxf3 {[%clk 0:02:45]} 12. Bxf3 {[%clk 0:02:32]}  Re8 {[%clk 0:02:45]} 13. Re1 {[%clk 0:02:31]}  Bf8 {[%clk 0:02:45]} 14. Qd2 {[%clk 0:02:21]}  Qb6 {[%clk 0:02:42]} 15. Reb1 {[%clk 0:01:43]}  Ne5 {[%clk 0:02:32]} 16. Be2 {[%clk 0:01:42]}  Qb4 {[%clk 0:02:25]} 17. a5 {[%clk 0:01:34]}  Qd4 {[%clk 0:01:47]} 18. Ra4 {[%clk 0:01:31]}  Qxd2 {[%clk 0:01:44]} 19. Bxd2 {[%clk 0:01:32]}  Ng6 {[%clk 0:01:22]} 20. Bf1 {[%clk 0:01:15]}  Re5 {[%clk 0:01:12]} 21. b4 {[%clk 0:01:10]}  Nxd5 {[%clk 0:01:02]} 22. bxc5 {[%clk 0:01:02]}  Nxc3 {[%clk 0:00:56]} 23. Bxc3 {[%clk 0:00:59]}  Rxc5 {[%clk 0:00:56]} 24. Ba1 {[%clk 0:00:35]}  Rxc2 {[%clk 0:00:45]} 25. Rxb7 {[%clk 0:00:35]}  d5 {[%clk 0:00:37]} 26. Rd7 {[%clk 0:00:26]}  Bc5 {[%clk 0:00:32]} 27. Bd4 {[%clk 0:00:23]}  Bxd4 {[%clk 0:00:20]} 28. Rxd4 {[%clk 0:00:23]}  Rc5 {[%clk 0:00:13]} 29. R4xd5 {[%clk 0:00:22]}  Rxd5 {[%clk 0:00:13]} 30. Rxd5 {[%clk 0:00:23]}  h6 {[%clk 0:00:10]} 31. Rd6 {[%clk 0:00:23]}  Nf4 {[%clk 0:00:07]} 32. Rxa6 {[%clk 0:00:22]}  Rb8 {[%clk 0:00:07]} 33. g3 {[%clk 0:00:19]}  Nd5 {[%clk 0:00:03]} 34. Bc4 {[%clk 0:00:17]} 1-0


[Site "https://www.chess.com"]